bitfinex-derivatives/quotes_BTCF0:USTF0_20241217
["timestamp","ask_amount","ask_price","bid_price","bid_amount"]
[1734447877482,0.3608,107720.0,107710.0,0.046412]
[1734447877678,0.76539403,107740.0,107710.0,0.046412]
[1734447877884,0.90186173,107740.0,107710.0,0.046412]
[1734447878181,0.76539403,107740.0,107710.0,0.046412]
[1734447878380,0.71899303,107740.0,107720.0,0.0464832]
[1734447878787,0.71899303,107740.0,107720.0,0.4072832]
[1734447878987,0.36219303,107740.0,107730.0,0.046404]
[1734447879803,0.49866073,107740.0,107720.0,0.3484852]
[1734447879991,0.36219303,107740.0,107720.0,0.3484852]
[1734447880180,0.54506073,107740.0,107720.0,0.0464852]
[1734447880385,0.36219303,107740.0,107720.0,0.0928912]
[1734447880682,0.8611557,107770.0,107740.0,0.046397]
[1734447880997,0.3608,107760.0,107740.0,0.046397]
[1734447881296,1.062388,107770.0,107750.0,0.046395]
[1734447881496,1.062388,107770.0,107730.0,0.5436717]
[1734447881794,0.3608,107760.0,107740.0,0.712097]
[1734447881993,0.4972677,107750.0,107730.0,0.407203]
[1734447882185,0.3608,107750.0,107730.0,0.407203]
[1734447882386,0.3608,107750.0,107730.0,0.046403]
[1734447882790,0.046392,107760.0,107730.0,0.046402]
[1734447882997,0.407192,107760.0,107730.0,0.046402]
[1734447883294,0.5436597,107760.0,107730.0,0.046402]
[1734447883794,0.3608,107760.0,107740.0,0.046395]
[1734447883985,1.1988557,107770.0,107740.0,0.407195]
[1734447884185,1.2452457,107770.0,107740.0,0.046395]
[1734447884387,0.407191,107760.0,107740.0,0.046395]
[1734447884590,1.1988547,107770.0,107740.0,0.046395]
[1734447884889,0.3608,107760.0,107740.0,0.046395]
[1734447885194,0.3608,107760.0,107740.0,0.092792]
[1734447885396,0.3608,107760.0,107740.0,0.396592]
[1734447885793,0.3608,107760.0,107740.0,0.350195]
[1734447886797,1.1988547,107770.0,107740.0,0.350195]
[1734447886986,0.3608,107760.0,107740.0,0.350195]
[1734447887587,1.2452437,107770.0,107740.0,0.350195]
[1734447887787,0.3608,107760.0,107740.0,0.350195]
[1734447887981,0.3608,107760.0,107740.0,0.396592]
[1734447888490,0.6985,107770.0,107750.0,7.101e-05]
[1734447888693,0.6985,107770.0,107750.0,0.04646501]
[1734447890590,0.3608,107770.0,107750.0,0.40726301]
[1734447890792,0.29705303,107770.0,107760.0,0.046391]
[1734447890998,0.00139251,107780.0,107760.0,0.740987]
[1734447891188,0.00139251,107780.0,107770.0,0.046386]
[1734447891389,0.1,107800.0,107780.0,0.046381]
[1734447891694,0.146374,107800.0,107780.0,0.046381]
[1734447892095,0.507174,107800.0,107780.0,0.046381]
[1734447892302,0.1,107800.0,107780.0,0.046381]
[1734447892792,0.146373,107800.0,107780.0,0.046381]
[1734447893301,0.1,107800.0,107790.0,0.407176]
[1734447893496,0.1,107800.0,107790.0,0.88611607]
[1734447893701,7.998e-05,107810.0,107790.0,1.18611607]
[1734447894000,7.998e-05,107810.0,107800.0,0.8515397]
[1734447894191,7.998e-05,107810.0,107800.0,0.4907397]
[1734447894396,7.998e-05,107810.0,107800.0,0.8515397]
[1734447894600,7.998e-05,107810.0,107800.0,0.3079]
[1734447895002,7.998e-05,107810.0,107800.0,0.14794806]
[1734447895197,7.998e-05,107810.0,107790.0,1.07134637]
[1734447895391,7.998e-05,107810.0,107790.0,0.74964637]
[1734447895600,7.998e-05,107810.0,107790.0,0.70327237]
[1734447895601,0.18291568,107810.0,107790.0,0.70327237]
[1734447895897,0.18291568,107810.0,107790.0,7.237e-05]
[1734447895898,0.13654768,107810.0,107790.0,7.237e-05]
[1734447896090,0.046372,107800.0,107790.0,7.237e-05]
[1734447896296,0.5436397,107800.0,107790.0,7.237e-05]
[1734447896494,0.9003397,107800.0,107790.0,7.237e-05]
[1734447897802,0.763872,107800.0,107790.0,7.237e-05]
[1734447897999,0.403072,107800.0,107790.0,7.237e-05]
[1734447898407,2.263872,107800.0,107790.0,7.237e-05]
[1734447898895,0.763872,107800.0,107790.0,7.237e-05]
[1734447900305,0.403072,107800.0,107790.0,7.237e-05]
[1734447900504,0.046372,107800.0,107790.0,7.237e-05]
[1734447900890,0.36087998,107810.0,107790.0,7.237e-05]
[1734447901097,0.40724798,107810.0,107790.0,0.18291607]
[1734447901291,7.998e-05,107810.0,107790.0,0.54371607]
[1734447901497,7.998e-05,107810.0,107800.0,0.3608]
[1734447901706,7.998e-05,107810.0,107790.0,0.90971607]
[1734447901900,0.04644798,107810.0,107790.0,0.72687237]
[1734447902111,0.04644798,107810.0,107790.0,0.36607237]
[1734447902408,0.04644798,107810.0,107790.0,0.77324737]
[1734447902798,7.998e-05,107810.0,107790.0,0.77324737]
[1734447903401,0.04644798,107810.0,107790.0,0.72687237]
[1734447903597,0.046372,107800.0,107790.0,0.36607237]
[1734447903805,0.046372,107800.0,107790.0,7.237e-05]
[1734447904119,0.407172,107800.0,107790.0,7.237e-05]
[1734447904503,1.907172,107800.0,107790.0,7.237e-05]
[1734447904706,2.0436397,107800.0,107790.0,7.237e-05]
[1734447905011,1.907172,107800.0,107790.0,7.237e-05]
[1734447905306,1.546372,107800.0,107790.0,7.237e-05]
[1734447905503,0.67797998,107810.0,107790.0,7.237e-05]
[1734447905709,0.72434998,107810.0,107790.0,7.237e-05]
[1734447905911,0.046372,107800.0,107790.0,7.237e-05]
[1734447906513,0.407172,107800.0,107790.0,7.237e-05]
[1734447906715,0.046372,107800.0,107790.0,7.237e-05]
[1734447907514,0.046372,107800.0,107790.0,0.36087237]
[1734447907901,0.04644898,107810.0,107790.0,0.54371607]
[1734447908103,7.998e-05,107810.0,107800.0,0.1364677]
[1734447908302,0.04644798,107810.0,107790.0,0.71907237]
[1734447908807,0.04644798,107810.0,107790.0,0.35827237]
[1734447909002,0.046372,107800.0,107790.0,7.237e-05]
[1734447911105,0.04644898,107810.0,107790.0,0.36087237]
[1734447911406,0.04644898,107810.0,107790.0,0.54371707]
[1734447911806,7.998e-05,107810.0,107790.0,0.54371707]
[1734447912002,7.998e-05,107810.0,107790.0,0.84561707]
[1734447912209,7.998e-05,107810.0,107800.0,0.1364677]
[1734447913008,0.05631789,107810.0,107790.0,0.96367237]
[1734447913419,0.046379,107790.0,107750.0,0.3608]
[1734447913600,0.7038,107780.0,107740.0,0.9954]
[1734447913915,0.407188,107770.0,107750.0,0.37907173]
[1734447914114,0.00986791,107760.0,107750.0,0.01827173]
[1734447914413,0.05625991,107760.0,107750.0,0.37914203]
[1734447914711,0.00986791,107760.0,107750.0,0.37914203]
[1734447915508,0.41705991,107760.0,107750.0,0.01834203]
[1734447916208,0.00986791,107760.0,107750.0,0.06473803]
[1734447916408,0.00986791,107760.0,107750.0,0.42553803]
[1734447916603,0.00986791,107760.0,107750.0,0.01834203]
[1734447917205,0.05625991,107760.0,107750.0,0.01834203]
[1734447917404,0.41705991,107760.0,107750.0,0.01834203]
[1734447917613,0.19272761,107760.0,107750.0,0.01834203]
[1734447919109,0.90242761,107760.0,107730.0,0.3608]
[1734447919317,0.1364677,107750.0,107720.0,0.717807]
[1734447919508,0.046402,107740.0,107730.0,0.01809824]
[1734447920005,0.05626991,107740.0,107730.0,0.01809824]
[1734447920206,0.05626991,107740.0,107730.0,0.01817251]
[1734447920403,0.55353761,107740.0,107730.0,7.427e-05]
[1734447920807,1.18463761,107740.0,107730.0,7.427e-05]
[1734447921001,1.18463761,107740.0,107700.0,0.1]
[1734447921212,0.046413,107710.0,107700.0,0.1]
[1734447921709,0.5436807,107710.0,107700.0,0.1]
[1734447921915,0.046421,107700.0,107670.0,0.71723]
[1734447922112,0.1828887,107700.0,107670.0,0.71723]
[1734447922320,0.5436897,107690.0,107680.0,7.331e-05]
[1734447922706,0.4972677,107690.0,107680.0,7.331e-05]
[1734447922911,0.1364677,107690.0,107680.0,7.331e-05]
[1734447923113,0.00986791,107690.0,107680.0,7.331e-05]
[1734447924015,0.00986791,107690.0,107680.0,0.40729931]
[1734447925717,0.00139321,107720.0,107680.0,0.84376701]
[1734447925910,0.00139321,107720.0,107700.0,0.407215]
[1734447926111,0.35278277,107730.0,107710.0,0.00010808]
[1734447926308,8.277e-05,107730.0,107720.0,0.407209]
[1734447927425,8.277e-05,107730.0,107720.0,0.8436767]
[1734447927610,0.00139283,107760.0,107750.0,0.046396]
[1734447928318,0.00139283,107760.0,107750.0,0.407196]
[1734447928517,0.00139283,107760.0,107750.0,0.04646694]
[1734447929411,0.00139283,107760.0,107750.0,0.40726694]
[1734447929611,0.3429,107780.0,107750.0,0.36087094]
[1734447929923,0.1364677,107760.0,107750.0,7.094e-05]
[1734447930112,0.1828557,107770.0,107750.0,7.094e-05]
[1734447931421,0.8865517,107780.0,107750.0,0.40726694]
[1734447931616,0.8865517,107780.0,107750.0,0.04646694]
[1734447932016,0.3429,107780.0,107760.0,0.3608]
[1734447932526,0.3429,107780.0,107770.0,0.3608]
[1734447932718,0.3429,107780.0,107760.0,0.407192]
[1734447933223,0.8401677,107780.0,107760.0,0.407192]
[1734447933420,0.8401677,107780.0,107750.0,0.40726694]
[1734447933421,0.8865517,107780.0,107750.0,0.40726694]
[1734447933612,0.1364677,107770.0,107750.0,7.094e-05]
[1734447933820,0.1364677,107770.0,107750.0,0.40726694]
[1734447934512,0.1364677,107770.0,107750.0,0.36087094]
[1734447934717,0.4972677,107760.0,107750.0,7.094e-05]
[1734447934912,1.3644274,107760.0,107750.0,1e-08]
[1734447935118,1.5279597,107760.0,107750.0,1e-08]
[1734447935428,0.8671597,107760.0,107750.0,1e-08]
[1734447935727,0.4599677,107760.0,107750.0,1e-08]
[1734447935932,0.5063597,107760.0,107750.0,1e-08]
[1734447936133,0.8671597,107760.0,107750.0,1e-08]
[1734447936317,0.4599677,107760.0,107750.0,1e-08]
[1734447936627,0.8207677,107760.0,107750.0,0.04639601]
[1734447936827,1.5,107770.0,107750.0,0.36080001]
[1734447937021,1.1534677,107780.0,107760.0,0.046392]
[1734447937425,1.1534677,107780.0,107760.0,0.09278]
[1734447937721,1.1534677,107780.0,107760.0,0.046388]
[1734447937920,1.017,107780.0,107770.0,0.046388]
[1734447938123,0.66435259,107790.0,107770.0,0.046388]
[1734447938326,0.00139258,107790.0,107780.0,0.046383]
[1734447938521,0.00139258,107790.0,107780.0,0.407183]
[1734447938720,1.26671948,107800.0,107780.0,0.3608]
[1734447938921,1.26671948,107800.0,107790.0,0.046379]
[1734447939329,1.26671948,107800.0,107780.0,0.3608]
[1734447939526,1.26671948,107800.0,107780.0,0.407181]
[1734447939728,1.26671948,107800.0,107780.0,0.046381]
[1734447939921,1.40318718,107800.0,107780.0,0.046381]
[1734447940122,0.1364677,107790.0,107780.0,0.046381]
[1734447940729,0.4972677,107790.0,107780.0,0.046381]
[1734447940929,0.4972677,107790.0,107770.0,0.046386]
[1734447941126,0.8065677,107790.0,107770.0,0.046386]
[1734447941427,0.5436517,107780.0,107760.0,0.04639]
[1734447941729,0.8529477,107790.0,107760.0,0.453579]
[1734447941930,0.1364677,107770.0,107750.0,1e-08]
[1734447942116,0.60097309,107760.0,107750.0,1e-08]
[1734447942320,1.01776509,107760.0,107750.0,1e-08]
[1734447942528,1.62706509,107760.0,107750.0,1e-08]
[1734447946225,1.32706509,107760.0,107750.0,1e-08]
[1734447946820,0.7312,107760.0,107750.0,0.04639601]
[1734447947027,0.3608,107770.0,107750.0,0.04639601]
[1734447947331,0.64736109,107770.0,107750.0,0.04639501]
[1734447947519,0.69375209,107770.0,107750.0,0.04639501]
[1734447947723,0.64736109,107770.0,107750.0,0.04639501]
[1734447947922,0.24017309,107760.0,107750.0,0.04639501]
[1734447948124,0.69375209,107770.0,107750.0,0.04639501]
[1734447948323,0.64736109,107770.0,107750.0,0.04639501]
[1734447948623,0.046392,107760.0,107750.0,0.04639501]
[1734447949225,0.046392,107760.0,107750.0,1e-08]
[1734447949433,0.60097309,107770.0,107750.0,1e-08]
[1734447949634,0.64736109,107770.0,107750.0,0.04639601]
[1734447949828,0.718286,107780.0,107750.0,0.40719601]
[1734447950129,0.99485409,107790.0,107760.0,0.407192]
[1734447950320,0.754681,107790.0,107770.0,0.046387]
[1734447950525,0.801063,107790.0,107760.0,0.407191]
[1734447950727,0.046384,107780.0,107760.0,0.046391]
[1734447951032,0.60097309,107780.0,107750.0,0.37839401]
[1734447951332,0.64735909,107780.0,107750.0,0.37839401]
[1734447951522,0.40719,107770.0,107750.0,0.33200001]
[1734447951729,0.04639,107770.0,107750.0,0.33200001]
[1734447951924,0.40719,107770.0,107750.0,1e-08]
[1734447952229,0.3608,107760.0,107750.0,1e-08]
[1734447952431,0.40719,107770.0,107750.0,1e-08]
[1734447953025,0.64736309,107770.0,107750.0,1e-08]
[1734447953428,0.28655809,107780.0,107750.0,0.40719601]
[1734447953623,0.60097309,107780.0,107750.0,0.40719601]
[1734447953824,0.407189,107770.0,107750.0,1e-08]
[1734447954029,0.407189,107770.0,107750.0,0.36080001]
[1734447954221,2.49485509,107790.0,107760.0,0.3608]
[1734447954426,0.99485509,107790.0,107760.0,0.3608]
[1734447954628,0.046385,107780.0,107760.0,0.3608]
[1734447954831,0.046388,107770.0,107750.0,0.36080001]
[1734447955027,0.3608,107780.0,107750.0,0.36080001]
[1734447955232,0.046386,107780.0,107750.0,0.40719601]
[1734447955422,0.046388,107770.0,107750.0,0.36080001]
[1734447955830,0.046388,107770.0,107750.0,1e-08]
[1734447956429,0.046388,107770.0,107750.0,0.36080001]
[1734447956935,0.046392,107760.0,107750.0,1e-08]
[1734447957825,0.407192,107760.0,107750.0,1e-08]
[1734447958024,0.046389,107770.0,107750.0,0.36080001]
[1734447958228,0.09278,107770.0,107750.0,1e-08]
[1734447958425,0.407189,107770.0,107750.0,1e-08]
[1734447958741,0.046385,107780.0,107760.0,0.3608]
[1734447959038,0.39388,107790.0,107770.0,0.3608]
[1734447959333,0.20199211,107800.0,107790.0,0.046379]
[1734447959640,0.20199211,107800.0,107790.0,0.3608]
[1734447959834,0.20151211,107800.0,107790.0,0.3608]
[1734447960237,0.20151211,107800.0,107780.0,1.10221683]
[1734447960435,0.20151211,107800.0,107780.0,1.10165683]
[1734447960636,0.20151211,107800.0,107790.0,0.407179]
[1734447961036,0.20151211,107800.0,107790.0,0.64735209]
[1734447961340,0.20011948,107800.0,107790.0,0.64735209]
[1734447961643,0.20011948,107800.0,107790.0,0.407179]
[1734447962042,0.20011948,107800.0,107790.0,0.94735209]
[1734447962349,0.08408733,107830.0,107810.0,0.24017309]
[1734447962531,0.08408733,107830.0,107820.0,0.3608]
[1734447963144,0.08408733,107830.0,107820.0,0.36089331]
[1734447963337,0.08408733,107830.0,107820.0,0.6474324]
[1734447963535,0.08408733,107830.0,107820.0,0.40725931]
[1734447963845,0.3608,107850.0,107820.0,0.9010664]
[1734447964045,0.37765,107860.0,107830.0,0.407161]
[1734447964046,0.04635,107860.0,107830.0,0.407161]
[1734447964337,0.40723025,107870.0,107840.0,0.407156]
[1734447964536,8.525e-05,107870.0,107850.0,0.3608]
[1734447964739,8.525e-05,107870.0,107860.0,0.64740123]
[1734447965134,2.0085242,107900.0,107860.0,0.94740123]
[1734447965331,2.0085242,107900.0,107870.0,0.64731509]
[1734447965332,0.4621912,107900.0,107870.0,0.64731509]
[1734447965535,0.1477252,107900.0,107870.0,0.407142]
[1734447965735,0.28651109,107890.0,107870.0,0.3608]
[1734447965936,0.046345,107870.0,107850.0,0.3997879]
[1734447966147,0.046345,107870.0,107860.0,0.00010706]
[1734447966539,0.046341,107880.0,107860.0,0.36090706]
[1734447966839,0.046341,107880.0,107870.0,0.3608]
[1734447967437,0.046336,107890.0,107870.0,0.3608]
[1734447967833,0.1013912,107900.0,107880.0,0.60097309]
[1734447968050,0.1013912,107900.0,107890.0,0.36087156]
[1734447968538,0.1013912,107900.0,107890.0,7.156e-05]
[1734447968738,0.1477232,107900.0,107890.0,7.156e-05]
[1734447969335,0.1013912,107900.0,107890.0,7.156e-05]
[1734447969532,0.1013912,107900.0,107880.0,0.24017309]
[1734447969533,0.4621912,107900.0,107880.0,0.24017309]
[1734447969750,0.3608,107890.0,107880.0,0.046339]
[1734447969950,0.4621912,107900.0,107880.0,0.046339]
[1734447970335,0.4608,107900.0,107880.0,0.3]
[1734447970541,0.1,107900.0,107890.0,0.04643712]
[1734447971348,0.1,107900.0,107890.0,0.00010112]
[1734447971544,0.1,107900.0,107890.0,0.04643712]
[1734447971845,0.1,107900.0,107890.0,0.58661021]
[1734447972144,0.3608,107920.0,107900.0,0.046332]
[1734447972347,0.3608,107930.0,107910.0,0.046326]
[1734447972543,0.3608,107920.0,107910.0,0.046326]
[1734447973045,0.3608,107920.0,107910.0,0.00010981]
[1734447973445,0.60097309,107920.0,107910.0,0.00010981]
[1734447973637,0.64729609,107920.0,107910.0,0.00010981]
[1734447975147,0.3608,107920.0,107910.0,0.00010981]
[1734447975344,0.60097309,107920.0,107910.0,0.00010981]
[1734447975650,0.3608,107920.0,107910.0,0.00010981]
[1734447976551,0.3608,107930.0,107920.0,0.046323]
[1734447976741,0.36219119,107950.0,107930.0,0.046319]
[1734447976940,0.36219119,107950.0,107940.0,0.00011746]
[1734447977136,0.64867428,107950.0,107940.0,0.00011746]
[1734447978744,2.14867428,107950.0,107940.0,0.00011746]
[1734447979452,0.36219119,107950.0,107940.0,0.00011746]
[1734447979649,0.60236428,107950.0,107940.0,0.00011746]
[1734447980055,0.64867428,107950.0,107940.0,0.00011746]
[1734447981349,2.14867428,107950.0,107940.0,0.00011746]
[1734447981952,0.36219119,107950.0,107940.0,0.00011746]
[1734447982345,0.64867428,107950.0,107940.0,0.00011746]
[1734447982549,0.60236428,107950.0,107940.0,0.00011746]
[1734447982745,0.36219119,107950.0,107940.0,0.00011746]
[1734447982956,0.36219119,107950.0,107940.0,0.04643246]
[1734447983553,0.36219119,107950.0,107940.0,0.00011746]
[1734447984152,0.36219119,107950.0,107940.0,0.54029055]
[1734447984458,0.36090466,107970.0,107950.0,0.046307]
[1734447984751,0.36090466,107970.0,107960.0,7.962e-05]
[1734447985154,0.3608,107980.0,107960.0,0.58655871]
[1734447985358,2.96218967,108000.0,107970.0,0.60097309]
[1734447985653,2.96218967,108000.0,107990.0,0.24017309]
[1734447985848,2.96218967,108000.0,107980.0,0.28646909]
[1734447986049,2.96218967,108000.0,107990.0,0.24017309]
[1734447986243,2.96218967,108000.0,107990.0,0.00010995]
[1734447986244,3.20236276,108000.0,107990.0,0.00010995]
[1734447986555,0.046296,107990.0,107950.0,0.43971328]
[1734447986750,3.24726409,108000.0,107950.0,0.07891328]
[1734447986751,0.3608,107970.0,107950.0,0.07891328]
[1734447986950,0.3608,107970.0,107950.0,0.31908637]
[1734447987151,0.4071,107980.0,107950.0,0.67988637]
[1734447987357,1.9071,107980.0,107960.0,0.000115]
[1734447987556,0.3608,107970.0,107960.0,0.000115]
[1734447988354,0.407102,107970.0,107960.0,0.000115]
[1734447989060,0.046306,107960.0,107940.0,0.03354308]
[1734447989270,0.407106,107960.0,107930.0,0.66607641]
[1734447990159,0.3608,107950.0,107940.0,0.00011026]
[1734447990461,0.04631,107950.0,107940.0,0.00011026]
[1734447990654,0.407107,107960.0,107940.0,0.00011026]
[1734447991255,0.407107,107960.0,107940.0,0.24028335]
[1734447991450,0.3608,107960.0,107940.0,0.28659635]
[1734447991759,0.3608,107970.0,107950.0,0.24017309]
[1734447991951,0.407102,107970.0,107950.0,0.24017309]
[1734447992153,0.3608,107960.0,107950.0,0.24017309]
[1734447992459,0.3608,107960.0,107940.0,0.28659635]
[1734447992656,0.3608,107960.0,107940.0,0.33290535]
[1734447993162,0.3608,107960.0,107950.0,0.28648309]
[1734447993552,0.3608,107970.0,107950.0,0.60097309]
[1734447993757,0.723,107980.0,107960.0,0.28656215]
[1734447993963,0.67618967,107990.0,107970.0,0.28647509]
[1734447994559,0.36218967,107990.0,107980.0,0.28656263]
[1734447995263,0.3608,107990.0,107980.0,0.28656263]
[1734447996555,2.9608,108000.0,107980.0,0.28656263]
[1734447997263,3.2608,108000.0,107980.0,9.254e-05]
[1734447997465,0.046313,107950.0,107930.0,0.01878532]
[1734447997665,0.3608,107940.0,107930.0,0.01878532]
[1734447998466,0.3608,107940.0,107930.0,0.06521701]
[1734447998670,0.3608,107940.0,107930.0,0.01889801]
[1734447999151,0.64728809,107940.0,107930.0,0.01889801]
[1734447999356,1.01608809,107940.0,107930.0,0.01889801]
[1734448000257,1.01608809,107940.0,107930.0,0.00011269]
[1734448000458,0.046319,107930.0,107910.0,0.01826623]
[1734448000657,0.046334,107900.0,107870.0,0.046344]
[1734448000865,0.28651309,107880.0,107860.0,0.3608]
[1734448001065,0.73138337,107920.0,107890.0,0.046335]
[1734448001265,0.40851457,107920.0,107890.0,0.046335]
[1734448001462,0.40851457,107920.0,107900.0,0.00010374]
[1734448002660,0.36219057,107920.0,107900.0,0.00010374]
[1734448002971,0.36219057,107920.0,107910.0,0.28650009]
[1734448002972,0.3608,107920.0,107910.0,0.28650009]
[1734448003163,0.3608,107920.0,107910.0,0.04640183]
[1734448003562,0.407119,107930.0,107910.0,7.483e-05]
[1734448003764,0.3608,107930.0,107910.0,0.04639983]
[1734448003961,0.32955841,107930.0,107920.0,0.046323]
[1734448004173,0.3608,107950.0,107940.0,0.046315]
[1734448004360,0.3608,107950.0,107920.0,0.40723091]
[1734448004767,0.3608,107940.0,107920.0,0.40723091]
[1734448004967,0.3608,107940.0,107920.0,0.45355091]
[1734448005171,0.3608,107940.0,107930.0,0.046319]
[1734448005463,0.3608,107950.0,107930.0,0.046319]
[1734448005968,0.3608,107940.0,107920.0,0.00010891]
[1734448006176,0.3608,107930.0,107920.0,0.00010891]
[1734448007071,0.407119,107930.0,107920.0,0.00010891]
[1734448007267,0.767619,107930.0,107920.0,0.03369359]
[1734448007472,0.046324,107920.0,107890.0,0.046335]
[1734448007670,0.3608,107910.0,107890.0,0.046335]
[1734448007867,0.3608,107910.0,107890.0,0.28650809]
[1734448008066,0.3608,107910.0,107880.0,0.64731209]
[1734448008578,0.3608,107910.0,107890.0,7.703e-05]
[1734448008579,0.3608,107900.0,107890.0,7.703e-05]
[1734448008874,0.60097309,107900.0,107890.0,7.703e-05]
[1734448009072,0.761632,107900.0,107890.0,7.703e-05]
[1734448009573,0.3545,107900.0,107890.0,7.703e-05]
[1734448009770,0.3608,107920.0,107900.0,0.046332]
[1734448009976,0.3608,107920.0,107900.0,0.64730509]
[1734448011372,0.3608,107910.0,107890.0,0.04641203]
[1734448012462,0.407129,107910.0,107890.0,7.703e-05]
[1734448012775,0.3608,107910.0,107890.0,7.703e-05]
[1734448012973,0.3608,107910.0,107890.0,0.04641303]
[1734448013368,0.407126,107920.0,107890.0,0.04641303]
[1734448013769,0.3608,107910.0,107890.0,7.703e-05]
[1734448013962,0.3608,107900.0,107890.0,7.703e-05]
[1734448014174,0.3608,107900.0,107880.0,0.28651109]
[1734448014476,0.3608,107900.0,107880.0,0.28651009]
[1734448014675,0.769232,107900.0,107870.0,0.407143]
[1734448014860,1.072632,107900.0,107880.0,0.01819956]
[1734448015067,0.3608,107890.0,107880.0,0.01819956]
[1734448015267,1.0263,107900.0,107880.0,0.01831059]
[1734448015473,1.0263,107900.0,107880.0,0.06464959]
[1734448015772,0.36219055,107920.0,107900.0,0.046328]
[1734448015971,0.36219055,107920.0,107900.0,0.28650109]
[1734448016278,0.36219055,107920.0,107910.0,8.256e-05]
[1734448017073,0.40851355,107920.0,107910.0,8.256e-05]
[1734448017376,0.046328,107910.0,107880.0,0.06453756]
[1734448017571,0.7055,107910.0,107890.0,0.28650909]
[1734448017767,0.3608,107900.0,107890.0,0.046336]
[1734448017969,0.36219055,107920.0,107890.0,0.64730909]
[1734448018171,0.00139055,107920.0,107910.0,0.046327]
[1734448018367,0.00139055,107920.0,107910.0,0.0463967]
[1734448018773,0.00139055,107920.0,107910.0,6.97e-05]
[1734448019870,0.00139055,107920.0,107910.0,0.0463967]
[1734448020077,0.7057,107930.0,107920.0,0.046323]
[1734448020379,0.3449,107930.0,107920.0,0.046323]
[1734448020580,0.9932,107940.0,107910.0,0.3608697]
[1734448020880,0.3608,107950.0,107940.0,0.046315]
[1734448020881,0.3449,107950.0,107940.0,0.046315]
[1734448021183,0.00139012,107960.0,107950.0,0.04631]
[1734448021476,0.67130551,107970.0,107950.0,0.04631]
[1734448021777,0.31050551,107970.0,107950.0,0.046309]
[1734448023274,0.67130551,107970.0,107940.0,0.4977818]
[1734448023476,0.67130551,107970.0,107950.0,0.04631]
[1734448023774,0.3608,107960.0,107940.0,0.30392171]
[1734448023981,0.046307,107960.0,107940.0,7.429e-05]
[1734448024168,0.407107,107960.0,107940.0,7.429e-05]
[1734448024373,0.3679,107950.0,107940.0,7.429e-05]
[1734448024676,0.7287,107950.0,107940.0,0.0282814]
[1734448024872,0.7287,107950.0,107940.0,7.429e-05]
[1734448025067,0.77501,107950.0,107940.0,7.429e-05]
[1734448025269,0.6692,107950.0,107940.0,7.429e-05]
[1734448025571,0.3608,107960.0,107940.0,0.28656238]
[1734448025882,0.3608,107960.0,107940.0,0.04638929]
[1734448026182,1.03920551,107970.0,107940.0,0.69367438]
[1734448026381,1.03920551,107970.0,107940.0,0.69367038]
[1734448026573,0.3608,107960.0,107940.0,0.33287038]
[1734448026775,1.03920551,107970.0,107950.0,0.046309]
[1734448027076,0.3608,107960.0,107950.0,0.046309]
[1734448027278,1.03920551,107970.0,107950.0,0.046309]
[1734448027493,0.3608,107960.0,107940.0,0.04638829]
[1734448027780,0.3608,107960.0,107940.0,7.429e-05]
[1734448028083,0.3608,107960.0,107940.0,0.04638829]
[1734448028890,0.3608,107950.0,107940.0,7.429e-05]
[1734448029071,0.97318309,107950.0,107940.0,7.429e-05]
[1734448029469,0.73301,107950.0,107940.0,7.429e-05]
[1734448029679,0.046324,107920.0,107880.0,0.3608]
[1734448029984,0.3608,107900.0,107890.0,0.01856615]
[1734448030280,0.046336,107890.0,107870.0,0.02841329]
[1734448030476,0.24017309,107880.0,107860.0,0.61307592]
[1734448030670,0.96037309,107890.0,107870.0,7.078e-05]
[1734448030883,0.24017309,107880.0,107870.0,0.36087078]
[1734448031078,0.96037309,107890.0,107870.0,7.078e-05]
[1734448031280,0.64731309,107880.0,107870.0,7.078e-05]
[1734448031483,0.24017309,107880.0,107870.0,7.078e-05]
[1734448031696,1.00671009,107890.0,107870.0,7.078e-05]
[1734448031884,0.96037309,107890.0,107870.0,0.01846295]
[1734448032183,0.3608,107880.0,107870.0,0.01846295]
[1734448032983,0.60097309,107880.0,107870.0,7.078e-05]
[1734448033283,0.60097309,107880.0,107850.0,0.43557557]
[1734448033479,0.24017309,107860.0,107850.0,0.02842457]
[1734448033783,0.64732309,107860.0,107820.0,0.407164]
[1734448033975,0.60097309,107850.0,107830.0,0.04636]
[1734448034176,0.3608,107850.0,107840.0,0.01858604]
[1734448034576,0.96661909,107870.0,107840.0,0.06494404]
[1734448034783,0.3608,107860.0,107830.0,0.27289827]
[1734448035178,0.3608,107860.0,107830.0,0.31925927]
[1734448035379,0.3608,107860.0,107840.0,0.046358]
[1734448035674,0.40853218,107880.0,107850.0,0.04643419]
[1734448035882,0.3608,107870.0,107850.0,0.04643419]
[1734448036077,0.3608,107870.0,107850.0,8.219e-05]
[1734448036273,0.64732209,107860.0,107820.0,0.07465136]
[1734448036474,0.24017309,107840.0,107820.0,0.43545136]
[1734448036674,0.3608,107840.0,107830.0,0.01828813]
[1734448036873,0.24017309,107840.0,107830.0,0.01828813]
[1734448037080,0.60097309,107840.0,107800.0,0.4608]
[1734448037281,0.24017309,107820.0,107800.0,0.1]
[1734448037593,0.407166,107820.0,107810.0,0.00010639]
[1734448037882,0.407166,107820.0,107800.0,0.1]
[1734448037883,0.04637,107810.0,107800.0,0.1]
[1734448038083,0.94227309,107810.0,107790.0,0.02828337]
[1734448038289,0.64735109,107800.0,107770.0,0.3608]
[1734448038471,0.60097309,107790.0,107770.0,0.38944478]
[1734448038673,0.3608,107790.0,107780.0,8.203e-05]
[1734448038974,0.60097309,107800.0,107780.0,8.203e-05]
[1734448039175,0.3608,107790.0,107780.0,8.203e-05]
[1734448040079,0.60097309,107800.0,107780.0,8.203e-05]
[1734448040287,1.59934509,107810.0,107780.0,8.203e-05]
[1734448040473,0.60097309,107800.0,107780.0,8.203e-05]
[1734448040873,0.60097309,107790.0,107780.0,8.203e-05]
[1734448041077,0.64735209,107790.0,107740.0,0.3608]
[1734448041274,0.60097309,107780.0,107750.0,0.407196]
[1734448041476,1.50139231,107800.0,107770.0,0.3608]
[1734448041477,0.00139231,107800.0,107770.0,0.3608]
[1734448041680,0.6023654,107800.0,107770.0,0.407186]
[1734448042081,0.6023654,107800.0,107780.0,9.053e-05]
[1734448042082,0.3608,107790.0,107780.0,9.053e-05]
[1734448042279,0.36219231,107800.0,107780.0,9.053e-05]
[1734448042480,0.00139231,107800.0,107780.0,0.40727353]
[1734448042679,0.00139231,107800.0,107780.0,0.04647353]
[1734448042881,0.36219231,107800.0,107780.0,0.40727353]
[1734448043086,0.00139231,107800.0,107780.0,0.40727353]
[1734448043575,0.00139231,107800.0,107790.0,0.046379]
[1734448044585,0.00139231,107800.0,107790.0,0.407179]